fUSD/lending_fUSD_20260408
["ID","MTS","AMOUNT","RATE_DAILY","PERIOD"]
[420054199,1775635846779,-2000.0,0.00015032,2]
[420054201,1775635846789,-2000.0,0.00015032,2]
[420054203,1775635846798,-2000.0,0.00015032,2]
[420054205,1775635846807,-2047.0,0.00015032,2]
[420054207,1775635846817,-150.0,0.00015032,2]
[420054209,1775635846827,-150.0,0.00015034,2]
[420054211,1775635846836,-150.0,0.0001504,2]
[420054213,1775635846846,-379.07938652,0.00015042,2]
[420054215,1775635846855,-150.0,0.00015045,2]
[420054217,1775635846865,-160.86,0.00015045,2]
[420054219,1775635846876,-196.77,0.00015052,2]
[420054221,1775635846885,-150.0,0.00015056,2]
[420054223,1775635846896,-150.0,0.00015062,2]
[420054225,1775635846906,-2885.74,0.00015068,2]
[420054227,1775635846916,-840.38,0.00015068,2]
[420054229,1775635846926,-150.0,0.00015069,2]
[420054231,1775635846937,-150.0,0.00015072,2]
[420054233,1775635846948,-150.0,0.00015074,2]
[420054235,1775635846959,-196.77,0.0001508,2]
[420054237,1775635846968,-985.91,0.00015081,2]
[420054239,1775635846978,-150.0,0.00015086,2]
[420054241,1775635846988,-150.0,0.00015086,2]
[420054243,1775635846998,-150.0,0.0001509,2]
[420054244,1775635847008,-150.0,0.00015093,2]
[420054245,1775635847018,-150.0,0.00015097,2]
[420054246,1775635847027,-1500.0,0.00015103,2]
[420054247,1775635847037,-930.82314799,0.00015103,2]
[420054248,1775635847047,-150.0,0.00015104,2]
[420054249,1775635847056,-1428.38747117,0.00015108,2]
[420054250,1775635847066,-200.0,0.00015108,2]
[420054251,1775635847076,-607.52605788,0.00015108,2]
[420054252,1775635847086,-201.93286099,0.00015108,2]
[420054253,1775635847095,-150.0,0.00015116,2]
[420054254,1775635847105,-150.0,0.00015116,2]
[420054255,1775635847115,-150.0,0.00015117,2]
[420054256,1775635847124,-150.0,0.00015136,2]
[420054257,1775635847132,-150.0,0.00015138,2]
[420054258,1775635847142,-150.0,0.0001514,2]
[420054259,1775635847151,-150.0,0.00015145,2]
[420054260,1775635847161,-2000.0,0.00015158,2]
[420054261,1775635847170,-2000.0,0.00015158,2]
[420054262,1775635847180,-2000.0,0.00015158,2]
[420054263,1775635847190,-2000.0,0.00015158,2]
[420054264,1775635847200,-2000.0,0.00015158,2]
[420054265,1775635847210,-2000.0,0.00015158,2]
[420054266,1775635847219,-2000.0,0.00015158,2]
[420054267,1775635847229,-2000.0,0.00015158,2]
[420054268,1775635847238,-2000.0,0.00015158,2]
[420054269,1775635847248,-2105.0,0.00015158,2]
[420054270,1775635847258,-150.0,0.00015158,2]
[420054271,1775635847267,-150.0,0.00015162,2]
[420054272,1775635847277,-150.0,0.00015162,2]
[420054273,1775635847286,-150.0,0.00015164,2]
[420054274,1775635847296,-150.0,0.00015168,2]
[420054275,1775635847305,-150.0,0.00015172,2]
[420054276,1775635847315,-150.0,0.00015179,2]
[420054277,1775635847324,-150.0,0.00015188,2]
[420054278,1775635847334,-1682.57724474,0.00015194,2]
[420054279,1775635847343,-150.0,0.000152,2]
[420054280,1775635847353,-150.0,0.000152,2]
[420054281,1775635847362,-150.0,0.000152,2]
[420054282,1775635847372,-150.0,0.000152,2]
[420054283,1775635847382,-150.0,0.000152,2]
[420054284,1775635847391,-150.0,0.000152,2]
[420054285,1775635847401,-155.0,0.00015209,3]
[420054286,1775635847410,-150.0,0.00015212,2]
[420054287,1775635847419,-150.0,0.00015221,2]
[420054288,1775635847429,-150.0,0.00015228,2]
[420054289,1775635847439,-150.0,0.00015232,2]
[420054290,1775635847450,-150.0,0.00015236,2]
[420054291,1775635847459,-150.0,0.00015238,2]
[420054292,1775635847469,-150.0,0.00015238,2]
[420054293,1775635847479,-437.01,0.00015239,2]
[420054294,1775635847489,-150.0,0.00015242,2]
[420054295,1775635847499,-150.0,0.00015255,2]
[420054296,1775635847508,-150.0,0.0001526,2]
[420054297,1775635847518,-150.0,0.00015262,2]
[420054298,1775635847527,-150.0,0.00015264,2]
[420054299,1775635847537,-150.0,0.00015283,2]
[420054300,1775635847546,-150.0,0.00015284,2]
[420054301,1775635847556,-150.0,0.00015284,2]
[420054302,1775635847566,-503.0,0.00015293,3]
[420054303,1775635847575,-150.0,0.00015296,2]
[420054304,1775635847585,-500.0,0.000153,2]
[420054305,1775635847595,-500.0,0.000153,2]
[420054306,1775635847604,-500.0,0.000153,2]
[420054307,1775635847614,-501.53334874,0.000153,2]
[420054308,1775635847623,-500.0,0.000153,2]
[420054309,1775635847633,-500.0,0.000153,2]
[420054310,1775635847643,-500.0,0.000153,2]
[420054311,1775635847653,-502.08343248,0.000153,2]
[420054312,1775635847662,-150.0,0.00015303,2]
[420054313,1775635847672,-150.0,0.00015307,2]
[420054314,1775635847685,-150.0,0.0001531,2]
[420054315,1775635847695,-150.0,0.00015314,2]
[420054316,1775635847704,-150.0,0.00015314,2]
[420054317,1775635847714,-150.0,0.00015326,2]
[420054318,1775635847724,-150.0,0.00015328,2]
[420054319,1775635847734,-150.0,0.00015331,2]
[420054320,1775635847744,-150.0,0.00015338,2]
[420054321,1775635847754,-150.0,0.00015344,2]
[420054322,1775635847764,-987.75,0.00015355,2]
[420054323,1775635847775,-150.0,0.00015355,2]
[420054324,1775635847785,-150.0,0.0001536,2]
[420054325,1775635847795,-350.0,0.0001536,2]
[420054326,1775635847806,-150.0,0.00015366,2]
[420054327,1775635847815,-150.0,0.00015368,2]
[420054328,1775635847824,-150.0,0.00015379,2]
[420054329,1775635847834,-150.0,0.00015385,2]
[420054330,1775635847844,-150.0,0.0001539,2]
[420054331,1775635847854,-150.0,0.0001539,2]
[420054332,1775635847864,-150.0,0.00015392,2]
[420054333,1775635847874,-350.0,0.00015393,2]
[420054334,1775635847884,-150.0,0.00015393,2]
[420054335,1775635847894,-150.0,0.00015403,2]
[420054336,1775635847904,-150.0,0.00015411,2]
[420054337,1775635847914,-502.38567456,0.00015416,2]
[420054338,1775635847924,-150.0,0.00015421,2]
[420054339,1775635847933,-1000.0,0.00015424,2]
[420054340,1775635847945,-150.0,0.00015424,2]
[420054341,1775635847954,-150.0,0.00015426,2]
[420054342,1775635847964,-350.0,0.00015426,2]
[420054343,1775635847973,-150.0,0.00015427,2]
[420054344,1775635847983,-150.0,0.00015448,2]
[420054345,1775635847993,-150.0,0.00015451,2]
[420054346,1775635848003,-150.0,0.00015453,2]
[420054347,1775635848013,-150.0,0.00015456,2]
[420054348,1775635848023,-150.0,0.00015467,2]
[420054349,1775635848032,-150.0,0.00015467,2]
[420054350,1775635848041,-150.0,0.00015467,2]
[420054351,1775635848050,-150.0,0.00015475,2]
[420054352,1775635848060,-150.0,0.00015476,2]
[420054353,1775635848070,-150.0,0.00015488,2]
[420054354,1775635848079,-150.0,0.00015495,2]
[420054355,1775635848090,-150.0,0.00015499,2]
[420054356,1775635848099,-150.0,0.00015503,2]
[420054357,1775635848109,-150.0,0.00015508,2]
[420054358,1775635848119,-150.0,0.0001552,2]
[420054359,1775635848128,-150.0,0.00015522,2]
[420054360,1775635848138,-481.98,0.00015529,2]
[420054361,1775635848148,-150.0,0.00015531,2]
[420054362,1775635848157,-150.0,0.00015537,2]
[420054363,1775635848167,-350.0,0.0001554,2]
[420054364,1775635848176,-150.0,0.00015543,2]
[420054365,1775635848185,-150.0,0.00015543,2]
[420054366,1775635848195,-150.0,0.00015546,2]
[420054367,1775635848205,-150.0,0.00015549,2]
[420054368,1775635848214,-150.0,0.00015552,2]
[420054369,1775635848224,-150.0,0.00015559,2]
[420054370,1775635848233,-150.0,0.0001557,2]
[420054371,1775635848243,-150.0,0.00015579,2]
[420054372,1775635848253,-150.0,0.00015584,2]
[420054373,1775635848262,-150.0,0.00015586,2]
[420054374,1775635848272,-150.0,0.0001559,2]
[420054375,1775635848282,-150.0,0.00015594,2]
[420054376,1775635848297,-150.0,0.000156,2]
[420054377,1775635848307,-150.0,0.00015614,2]
[420054378,1775635848316,-150.0,0.00015616,2]
[420054379,1775635848326,-150.0,0.00015618,2]
[420054380,1775635848335,-150.0,0.00015619,2]
[420054381,1775635848345,-150.0,0.00015619,2]
[420054382,1775635848354,-150.0,0.00015621,2]
[420054383,1775635848364,-150.0,0.00015631,2]
[420054384,1775635848373,-150.0,0.00015641,2]
[420054385,1775635848383,-150.0,0.00015642,2]
[420054386,1775635848393,-150.0,0.00015648,2]
[420054387,1775635848402,-254.25810122,0.00015651,2]
[420054388,1775635848412,-646.65982734,0.00015655,2]
[420054389,1775635848421,-599.60298507,0.00015655,2]
[420054390,1775635848431,-200.0,0.00015656,2]
[420054391,1775635848440,-1481.23780761,0.00015656,2]
[420054392,1775635848450,-209.40437684,0.00015656,2]
[420054393,1775635848459,-150.0,0.00015663,2]
[420054394,1775635848469,-150.0,0.00015666,2]
[420054395,1775635848480,-150.0,0.00015669,2]
[420054396,1775635848489,-150.0,0.00015672,2]
[420054397,1775635848498,-150.0,0.0001568,2]
[420054398,1775635848508,-150.0,0.0001569,2]
[420054399,1775635848517,-150.0,0.00015695,2]
[420054400,1775635848527,-150.0,0.00015695,2]
[420054401,1775635848537,-150.0,0.00015697,2]
[420054402,1775635848547,-150.0,0.00015705,2]
[420054403,1775635848556,-150.0,0.00015712,2]
[420054404,1775635848566,-150.0,0.00015713,2]
[420054405,1775635848576,-150.0,0.00015713,2]
[420054406,1775635848586,-350.0,0.00015721,2]
[420054407,1775635848596,-150.0,0.00015724,2]
[420054408,1775635848607,-150.0,0.00015737,2]
[420054409,1775635848617,-150.0,0.00015744,2]
[420054410,1775635848627,-150.0,0.00015747,2]
[420054411,1775635848636,-150.0,0.00015752,2]
[420054412,1775635848645,-2885.74,0.00015753,2]
[420054413,1775635848656,-150.0,0.00015754,2]
[420054414,1775635848665,-469.0,0.00015757,3]
[420054415,1775635848674,-150.0,0.00015761,2]
[420054416,1775635848684,-150.0,0.00015771,2]
[420054417,1775635848694,-150.0,0.00015771,2]
[420054418,1775635848704,-150.0,0.00015776,2]
[420054419,1775635848713,-1252.0,0.00015777,2]
[420054420,1775635848723,-150.0,0.00015779,2]
[420054421,1775635848733,-150.0,0.00015785,2]
[420054422,1775635848743,-150.0,0.00015789,2]
[420054423,1775635848753,-1000.0,0.00015794,2]
[420054424,1775635848762,-150.0,0.00015795,2]
[420054425,1775635848772,-10000.0,0.000158,2]
[420054426,1775635848782,-715.89742388,0.000158,2]
[420054427,1775635848792,-150.0,0.00015807,2]
[420054428,1775635848802,-500.0,0.00015808,2]
[420054429,1775635848811,-500.0,0.00015808,2]
[420054430,1775635848821,-396.4808442,0.00015808,2]
[420054431,1775635848832,-150.0,0.00015808,2]
[420054432,1775635848841,-150.0,0.00015809,2]
[420054433,1775635848851,-160.0,0.00015824,2]
[420054434,1775635848861,-150.0,0.00015832,2]
[420054435,1775635848871,-150.0,0.00015833,2]
[420054436,1775635848881,-150.0,0.00015834,2]
[420054437,1775635848891,-150.0,0.00015836,2]
[420054438,1775635848901,-150.0,0.0001584,2]
[420054439,1775635848911,-1000.0,0.00015846,2]
[420054440,1775635848921,-150.0,0.00015848,2]
[420054441,1775635848931,-150.0,0.00015848,2]
[420054442,1775635848941,-1000.0,0.00015848,2]
[420054443,1775635848950,-1000.0,0.00015848,2]
[420054444,1775635848960,-1000.0,0.00015848,2]
[420054445,1775635848970,-481.98,0.0001585,2]
[420054446,1775635848980,-150.0,0.00015857,2]
[420054447,1775635848991,-163.8001,0.0001586,2]
[420054448,1775635849001,-150.0,0.00015862,2]
[420054449,1775635849011,-163.8001,0.0001587,2]
[420054450,1775635849022,-150.0,0.00015872,2]
[420054451,1775635849032,-150.0,0.00015874,2]
[420054452,1775635849042,-150.0,0.00015877,2]
[420054453,1775635849052,-150.0,0.00015881,2]
[420054454,1775635849061,-150.0,0.0001589,2]
[420054455,1775635849071,-500.0,0.0001589,2]
[420054456,1775635849082,-500.0,0.0001589,2]
[420054457,1775635849092,-500.0,0.0001589,2]
[420054458,1775635849102,-194.91667222,0.0001589,2]
[420054459,1775635849112,-2000.0,0.0001589,2]
[420054460,1775635849121,-160.86,0.00015894,2]
[420054461,1775635849131,-222.0912,0.000159,2]
[420054462,1775635849141,-184.01842302,0.000159,2]
[420054463,1775635849151,-836.45900119,0.000159,2]
[420054464,1775635849160,-150.28660628,0.000159,2]
[420054465,1775635849170,-1603.43673345,0.000159,2]
[420054466,1775635849179,-3798.10968144,0.000159,2]
[420054467,1775635849189,-2000.0,0.000159,2]
[420054468,1775635849199,-150.0,0.00015904,2]
[420054469,1775635849209,-150.0,0.00015904,2]
[420054470,1775635849218,-1682.57724474,0.0001591,2]
[420054471,1775635849228,-150.0,0.00015916,2]
[420054472,1775635849237,-150.0,0.00015917,2]
[420054473,1775635849247,-150.0,0.00015918,2]
[420054474,1775635849257,-150.0,0.00015924,2]
[420054475,1775635849266,-150.0,0.00015924,2]
[420054476,1775635849275,-150.0,0.00015928,2]
[420054477,1775635849285,-239803.7749476,0.0001593,2]
[420054478,1775635849295,-150.0,0.00015936,2]
[420054479,1775635849305,-150.0,0.00015945,2]
[420054480,1775635849315,-1000.0,0.00015946,2]
[420054481,1775635849324,-160.86,0.00015952,2]
[420054482,1775635849334,-150.0,0.00015952,2]
[420054483,1775635849344,-350.0,0.00015953,2]
[420054484,1775635849353,-150.0,0.00015958,2]
[420054485,1775635849363,-150.0,0.00015959,2]
[420054486,1775635849373,-150.0,0.00015965,2]
[420054487,1775635849383,-150.0,0.00015968,2]
[420054488,1775635849393,-150.0,0.00015972,2]
[420054489,1775635849403,-500.0,0.00015973,2]
[420054490,1775635849413,-500.0,0.00015973,2]
[420054491,1775635849423,-500.0,0.00015973,2]
[420054492,1775635849433,-361.43877969,0.00015973,2]
[420054493,1775635849443,-165.08001948,0.00015973,2]
[420054494,1775635849454,-500.0,0.00015973,2]
[420054495,1775635849463,-500.0,0.00015973,2]
[420054496,1775635849473,-500.0,0.00015973,2]
[420054497,1775635849483,-501.22826804,0.00015973,2]
[420054498,1775635849493,-500.0,0.00015973,2]
[420054499,1775635849502,-500.0,0.00015973,2]
[420054500,1775635849512,-500.0,0.00015973,2]
[420054501,1775635849521,-500.0,0.00015973,2]
[420054502,1775635849531,-500.0,0.00015973,2]
[420054503,1775635849540,-500.0,0.00015973,2]
[420054504,1775635849550,-500.0,0.00015973,2]
[420054505,1775635849560,-308.60154884,0.00015973,2]
[420054506,1775635849569,-500.0,0.00015973,2]
[420054507,1775635849578,-500.0,0.00015973,2]
[420054508,1775635849589,-500.0,0.00015973,2]
[420054509,1775635849598,-500.0,0.00015973,2]
[420054510,1775635849608,-244.23047354,0.00015973,2]
[420054511,1775635849618,-500.0,0.00015973,2]
[420054512,1775635849627,-500.32940014,0.00015973,2]
[420054513,1775635849637,-500.0,0.00015973,2]
[420054514,1775635849646,-500.0,0.00015973,2]
[420054515,1775635849656,-500.0,0.00015973,2]
[420054516,1775635849665,-500.0,0.00015973,2]
[420054517,1775635849675,-538.78941312,0.00015973,2]
[420054518,1775635849685,-1000.0,0.00015973,2]
[420054519,1775635849696,-150.0,0.00015976,2]
[420054520,1775635849706,-350.0,0.00015983,2]
[420054521,1775635849716,-460.45468055,0.0001599,2]
[420054522,1775635849725,-823.97,0.00015992,2]
[420054523,1775635849736,-823.97,0.00015992,2]
[420054524,1775635849745,-823.97,0.00015992,2]
[420054525,1775635849755,-823.97,0.00015992,2]
[420054526,1775635849765,-824.09706313,0.00015992,2]
[420054527,1775635849775,-2437.0158911,0.00015993,2]
[420054528,1775635849784,-228937.7674452,0.00015993,2]
[420054529,1775635849795,-151.0,0.00015997,2]
[420054530,1775635849805,-151.0,0.00015997,2]
[420054531,1775635849815,-666.0,0.00015999,2]
[420054532,1775635849825,-3309.72904873,0.00015999,2]
[420054533,1775635849835,-153.03603175,0.00016,2]
[420054534,1775635849845,-254.97243642,0.00016,2]
[420054535,1775635849856,-240.76039255,0.00016,2]
[420054536,1775635849865,-257.21753865,0.00016,2]
[420054537,1775635849874,-246.14760097,0.00016,2]
[420054538,1775635849884,-265.82430715,0.00016,2]
[420054539,1775635849893,-154.96470644,0.00016,2]
[420054540,1775635849903,-235.51154759,0.00016,2]
[420054541,1775635849913,-175.09773323,0.00016,2]
[420054542,1775635849923,-260.08916634,0.00016,2]
[420054543,1775635849933,-2727746.55043856,0.00016,2]
[420054544,1775635849944,-151.0,0.00016,2]
[420054545,1775635849954,-151.0,0.00016,2]
[420054546,1775635849964,-2000.0,0.00016,2]
[420054547,1775635849974,-2000.0,0.00016,2]
[420054548,1775635849983,-200.0,0.00016,2]
[420054549,1775635850162,-200.0,0.00016,2]
[420054550,1775635850176,-163.6276954,0.00016,2]
[420054551,1775635850186,-626.97926418,0.00016,2]
[420054552,1775635850197,-200.0,0.00016,2]
[420054553,1775635850206,-5278801.49322333,0.00016,2]
[420054554,1775635851181,-2936.5044634,0.00016,2]
[420054555,1775635851203,-1997.20121288,0.00010873,2]
[420054556,1775635851252,-496.39233885,0.00010873,2]
[420054557,1775635852153,-259.39905185,0.00010802,2]
[420054558,1775635852316,-6.18148552,0.00010802,2]
[420054559,1775635852328,-389.78083932,0.00010802,2]
[420054560,1775635852338,-556.27176129,0.00010873,2]
[420054561,1775635852350,-787.67,0.00010873,2]
[420054562,1775635852452,-1421.07313456,0.00010873,2]
[420054563,1775635852665,-673.3310658,0.00010751,2]
[420054564,1775635852677,-634.54105518,0.00010751,2]
[420054565,1775635852686,-32.11894482,0.00010873,2]
[420054566,1775635852698,-18836.192355,0.00010873,2]
[420054567,1775635852756,-2339.63643602,0.00010873,2]
[420054568,1775635852802,-562.39994,0.00010873,2]
[420054569,1775635852814,-345.0,0.00010873,2]
[420054570,1775635852983,-23343.64922998,0.00010873,2]
[420054571,1775635853028,-491.65400287,0.00010873,2]
[420054572,1775635853344,5580.25,9.96e-05,2]
[420054573,1775635866833,375.0,9.96e-05,3]
[420054574,1775635927860,379.0,9.96e-05,3]
[420054575,1775635985844,159.0,9.96e-05,3]
[420054576,1775636042765,300.0,0.000161,120]
[420054577,1775636051577,399.0,9.96e-05,3]
[420054578,1775636107158,379.0,9.96e-05,3]
[420054579,1775636108894,155.0,9.96e-05,3]
[420054580,1775636161974,1002.7,0.000161,120]
[420054581,1775636168684,361.0,9.96e-05,3]
[420054582,1775636231502,350.0,9.96e-05,3]
[420054584,1775636292526,341.0,9.96e-05,3]
[420054586,1775636405832,324.0,9.96e-05,3]
[420054587,1775636415766,155.0,9.96e-05,3]
[420054588,1775636436360,500.0,9.91e-05,2]
[420054589,1775636515271,10000.01,9.874e-05,2]
[420054590,1775636520183,-4347.97,9.874e-05,2]
[420054591,1775636520800,-1304.07,9.874e-05,2]
[420054592,1775636527232,308.0,9.96e-05,3]
[420054593,1775636528429,283.332366,7.945e-05,2]
[420054594,1775636531045,-294.0,9.981e-05,2]
[420054595,1775636531067,-200.0,9.981e-05,2]
[420054596,1775636587317,292.0,9.96e-05,3]
[420054597,1775636610196,1000.0,9.877e-05,2]
[420054598,1775636610221,500.0,9.877e-05,2]
[420054599,1775636646448,278.0,9.96e-05,3]
[420054601,1775636710020,500.0,9.974e-05,2]
[420054602,1775636710042,1000.0,9.974e-05,2]
[420054603,1775636710064,500.0,9.974e-05,2]
[420054604,1775636772675,76.61754539,9.96e-05,3]
[420054605,1775636772698,187.38245461,9.96e-05,3]
[420054606,1775636827191,250.0,9.96e-05,3]
[420054607,1775636887280,62.61754539,9.96e-05,3]
[420054608,1775636887307,175.38245461,9.96e-05,3]
[420054609,1775636899158,-500.0,0.00010208,2]
[420054610,1775636899189,-250.0,0.00010208,2]
[420054611,1775636899222,-250.0,0.00010208,2]
[420054612,1775636899514,-12.3808947,0.00010208,2]
[420054613,1775636899544,-987.6191053,0.0001022,2]
[420054614,1775636902178,-1000.0,0.0001022,2]
[420054615,1775636902307,-1000.0,0.0001022,2]
[420054616,1775636902356,-1000.0,0.0001022,2]
[420054617,1775636902389,-866.6108947,0.0001022,2]
[420054618,1775636938980,-250.0,0.00010363,2]
[420054619,1775636939007,-300.0,0.00010589,2]
[420054620,1775636939031,-300.0,0.0001059,2]
[420054621,1775636939055,-150.0,0.0001059,2]
[420054622,1775636940807,-1000.0,0.0001059,2]
[420054623,1775636941124,-50.0,0.0001059,2]
[420054624,1775636941148,-300.0,0.0001059,2]
[420054625,1775636941172,-150.0,0.00010591,2]
[420054626,1775636941195,-500.0,0.00010592,2]
[420054627,1775636941550,-500.0,0.00010592,2]
[420054628,1775636941574,-500.0,0.00010592,2]
[420054629,1775636941979,-500.0,0.00010592,2]
[420054630,1775636942004,-500.0,0.00010592,2]
[420054631,1775636942287,-1000.0,0.00010591,2]
[420054632,1775636942841,-200.0,0.00010591,2]
[420054633,1775636942867,-500.0,0.00010592,2]
[420054634,1775636942891,-300.0,0.00010592,2]
[420054635,1775636942959,-200.0,0.00010592,2]
[420054636,1775636942982,-500.0,0.00010592,2]
[420054637,1775636943005,-300.0,0.00010592,2]
[420054638,1775636943320,-200.0,0.00010592,2]
[420054639,1775636943345,-500.0,0.00010592,2]
[420054640,1775636943372,-300.0,0.00010592,2]
[420054642,1775636946051,-200.0,0.00010592,2]
[420054643,1775636946076,-330.0,0.00010592,2]
[420054644,1775636946100,-470.0,0.00010593,2]
[420054645,1775637009536,1000.0,0.0001,2]
[420054646,1775637009564,300.0,0.0001,2]
[420054647,1775637016247,155.0,9.96e-05,3]
[420054648,1775637020726,226.0,9.96e-05,3]
[420054655,1775637034405,-14301.21777574,0.000101,2]
[420054656,1775637034417,-262.02687277,0.000101,2]
[420054657,1775637034428,-591.86802884,0.000101,2]
[420054658,1775637034500,-1737.53125034,0.000101,2]
[420054659,1775637034512,-12360.38826439,0.000101,2]
[420054660,1775637034523,-3031.8631592,0.000101,2]
[420054661,1775637034567,-365.71482901,0.000101,2]
[420054662,1775637034580,-38693.38981971,0.000101,2]
[420054663,1775637034589,-300.0,0.00010299,2]
[420054664,1775637034599,-1200.0,0.00010299,2]
[420054665,1775637034608,-150.0,0.00010299,2]
[420054666,1775637034618,-435.95737366,0.00010493,2]
[420054667,1775637034628,-164.45663059,0.00010573,2]
[420054668,1775637034636,-160959.2829705,0.00010592,2]
[420054669,1775637034726,-856.08682692,0.00010592,2]
[420054670,1775637034738,-636.65095903,0.00010592,2]
[420054677,1775637038468,-1738.835448,0.00010592,2]
[420054678,1775637038482,-1164.20361154,0.00010592,2]
[420054679,1775637038494,-14639.6315154,0.00010592,2]
[420054680,1775637038505,-1582.11624368,0.00010592,2]
[420054681,1775637038517,-2318423.19242493,0.00010592,2]
[420054682,1775637038527,-250.0,0.00010593,2]
[420054683,1775637038537,-1500000.0,0.00010593,2]
[420054684,1775637038547,-386.71698126,0.00010593,2]
[420054685,1775637038557,-2030.0,0.00010593,2]
[420054686,1775637038568,-153.43410661,0.00010603,2]
[420054687,1775637038579,-1000.0,0.00010692,2]
[420054688,1775637038589,-500.0,0.00010692,2]
[420054689,1775637038599,-500.0,0.00010692,2]
[420054690,1775637038609,-500.0,0.00010692,2]
[420054691,1775637038619,-500.0,0.00010692,2]
[420054692,1775637038629,-500.0,0.00010692,2]
[420054693,1775637038639,-500.0,0.00010692,2]
[420054694,1775637038649,-500.0,0.00010692,2]
[420054695,1775637038659,-500.0,0.00010692,2]
[420054696,1775637038668,-500.0,0.00010692,2]
[420054697,1775637038679,-500.0,0.00010692,2]
[420054698,1775637038689,-500.0,0.00010692,2]
[420054699,1775637038699,-500.0,0.00010692,2]
[420054700,1775637038709,-500.0,0.00010692,2]
[420054701,1775637038718,-500.0,0.00010692,2]
[420054702,1775637038728,-500.0,0.00010692,2]
[420054703,1775637038738,-500.0,0.00010692,2]
[420054704,1775637038748,-500.0,0.00010692,2]
[420054705,1775637038758,-500.0,0.00010692,2]
[420054706,1775637038769,-500.0,0.00010692,2]
[420054707,1775637038780,-500.0,0.00010692,2]
[420054708,1775637038790,-248.21790113,0.00010692,2]
[420054709,1775637038800,-500.0,0.00010692,2]
[420054710,1775637038810,-500.0,0.00010692,2]
[420054711,1775637038821,-500.0,0.00010692,2]
[420054712,1775637038831,-500.0,0.00010692,2]
[420054713,1775637038841,-500.0,0.00010692,2]
[420054714,1775637038852,-500.0,0.00010692,2]
[420054715,1775637038862,-500.0,0.00010692,2]
[420054716,1775637038871,-500.0,0.00010692,2]
[420054721,1775637039091,-500.0,0.00010692,2]
[420054722,1775637039101,-500.0,0.00010692,2]
[420054723,1775637039111,-500.0,0.00010692,2]
[420054724,1775637039120,-500.0,0.00010692,2]
[420054725,1775637039129,-500.0,0.00010692,2]
[420054726,1775637039140,-500.0,0.00010692,2]
[420054727,1775637039149,-500.0,0.00010692,2]
[420054728,1775637039159,-500.0,0.00010692,2]
[420054729,1775637039170,-500.0,0.00010692,2]
[420054730,1775637039180,-350.0,0.00010692,2]
[420054731,1775637039190,-500.0,0.00010692,2]
[420054732,1775637039199,-500.0,0.00010692,2]
[420054733,1775637039210,-269.16,0.00010692,2]
[420054734,1775637039221,-51414.6404654,0.00010692,2]
[420054735,1775637039232,-2840.833,0.00010693,2]
[420054736,1775637039242,-164.288,0.00010693,2]
[420054737,1775637039252,-150.99,0.00010693,2]
[420054738,1775637039262,-23419.26,0.00010693,2]
[420054739,1775637039272,-8464.87,0.00010693,2]
[420054740,1775637039282,-8387.58,0.00010693,2]